bitfinex-derivatives/quotes_BNBF0:USTF0_20250401
["timestamp","ask_amount","ask_price","bid_price","bid_amount"]
[1743484049690,0.30136408,610.41,608.52,2.07666627]
[1743484049885,0.2854518,610.05,608.52,2.07666627]
[1743484050092,0.32764326,610.42,608.52,2.07666627]
[1743484050289,0.30136497,610.41,608.52,2.07666627]
[1743484050496,0.2854518,610.04,608.52,2.07666627]
[1743484050688,0.32764326,610.42,608.52,2.07666627]
[1743484050993,0.2854518,610.03,608.52,2.07666627]
[1743484051485,0.32764326,610.42,608.52,2.07666627]
[1743484051684,0.28545063,610.02,608.52,2.07666627]
[1743484051890,0.30136497,610.41,608.52,2.07666627]
[1743484052090,0.32764326,610.42,608.52,2.07666627]
[1743484052290,0.28546117,610.01,608.52,2.07666627]
[1743484052490,0.32764326,610.42,608.52,2.07666627]
[1743484052690,0.30137313,610.41,608.52,2.07666627]
[1743484052892,0.28547522,610.0,608.52,2.07666627]
[1743484053190,0.32764326,610.42,608.52,2.07666627]
[1743484053387,0.28547522,609.99,608.52,2.07666627]
[1743484053789,0.32764326,610.42,608.52,2.07666627]
[1743484053985,0.28547405,609.98,608.52,2.07666627]
[1743484054387,0.32764326,610.42,608.52,2.07666627]
[1743484054584,0.28547405,609.97,608.52,2.07666627]
[1743484054990,0.32764326,610.42,608.52,2.07666627]
[1743484055189,0.30139941,610.41,608.52,2.07666627]
[1743484055390,0.28547522,609.96,608.52,2.07666627]
[1743484055690,0.32764326,610.42,608.52,2.07666627]
[1743484055891,0.28547522,609.95,608.52,2.07666627]
[1743484056287,0.32764326,610.42,608.52,2.07666627]
[1743484056489,0.28547522,609.94,608.52,2.07666627]
[1743484056792,0.32764326,610.42,608.52,2.07666627]
[1743484056991,0.30139872,610.41,608.52,2.07666627]
[1743484057289,0.28547522,609.93,608.52,2.07666627]
[1743484057491,0.32764326,610.42,608.52,2.07666627]
[1743484057692,0.28547405,610.4,608.52,2.07666627]
[1743484057992,0.30139872,610.39,608.52,2.07666627]
[1743484060590,0.58687511,610.38,608.52,2.07666627]
[1743484060794,0.30139872,610.37,608.52,2.07666627]
[1743484061392,0.30140116,610.36,608.52,2.07666627]
[1743484061595,0.30140116,610.35,608.52,2.07666627]
[1743484061891,0.30140116,610.34,608.52,2.07666627]
[1743484062091,0.30140116,610.37,608.52,2.07666627]
[1743484062295,0.30140116,610.36,608.52,2.07666627]
[1743484062596,0.30140116,610.35,608.52,2.07666627]
[1743484062794,0.30140116,610.34,608.52,2.07666627]
[1743484062993,0.30140116,610.33,608.52,2.07666627]
[1743484063291,0.30140116,610.32,608.52,2.07666627]
[1743484063491,0.30140116,610.41,608.52,2.07666627]
[1743484063692,0.28546468,610.32,608.52,2.07666627]
[1743484063992,0.30140116,610.31,608.52,2.07666627]
[1743484064195,0.28546117,610.31,608.52,2.07666627]
[1743484064393,0.30140116,610.3,608.52,2.07666627]
[1743484066603,0.58687404,610.29,608.52,2.07666627]
[1743484066902,0.28547288,610.29,608.52,2.07666627]
[1743484067905,0.3013834,610.28,608.52,2.07666627]
[1743484069709,0.28547522,610.27,608.52,2.07666627]
[1743484070109,0.30138374,610.26,608.52,2.07666627]
[1743484072509,0.30138374,610.41,608.52,2.07666627]
[1743484072713,0.28547288,610.25,608.52,2.07666627]
[1743484072914,0.30138374,610.24,608.52,2.07666627]
[1743484073212,0.30138374,610.23,608.52,2.07666627]
[1743484073408,0.28545766,610.24,608.52,2.07666627]
[1743484074510,0.30138358,610.23,608.52,2.07666627]
[1743484075611,0.58685997,610.22,608.52,2.07666627]
[1743484075815,0.30138358,610.21,608.52,2.07666627]
[1743484076913,0.28547639,610.22,608.52,2.07666627]
[1743484078316,0.32764326,610.42,608.52,2.07666627]
[1743484078616,0.28546936,610.21,608.52,2.07666627]
[1743484078815,0.30140121,610.2,608.52,2.07666627]
[1743484079219,0.30140121,610.19,608.52,2.07666627]
[1743484079417,0.30140121,610.41,608.52,2.07666627]
[1743484079620,0.28546936,610.19,608.52,2.07666627]
[1743484079820,0.30140121,610.18,608.52,2.07666627]
[1743484080318,0.30140121,610.17,608.52,2.07666627]
[1743484081419,0.30140121,610.41,608.52,2.07666627]
[1743484081719,0.28550215,610.16,608.52,2.07666627]
[1743484081918,0.30140121,610.15,608.52,2.07666627]
[1743484082121,0.30140121,610.14,608.52,2.07666627]
[1743484082320,0.28547639,610.15,608.52,2.07666627]
[1743484082518,0.3014076,610.14,608.52,2.07666627]
[1743484084628,0.58689921,610.13,608.52,2.07666627]
[1743484084827,0.28549161,610.13,608.52,2.07666627]
[1743484087230,0.32764326,610.42,608.52,2.07666627]
[1743484087428,0.30137836,610.41,608.52,2.07666627]
[1743484087628,0.28546,610.12,608.52,2.07666627]
[1743484087827,0.32764326,610.42,608.52,2.07666627]
[1743484088030,0.30137709,610.41,608.52,2.07666627]
[1743484088328,0.28546117,610.11,608.52,2.07666627]
[1743484088533,0.32764326,610.42,608.52,2.07666627]
[1743484088833,0.28546117,610.1,608.52,2.07666627]
[1743484089128,0.32764326,610.42,608.52,2.07666627]
[1743484089627,0.28546117,610.09,608.52,2.07666627]
[1743484089929,0.32764326,610.42,608.52,2.07666627]
[1743484090133,0.58601947,610.41,608.52,2.07666627]
[1743484090332,0.30137901,610.4,608.52,2.07666627]
[1743484093629,0.58684018,610.39,608.52,2.07666627]
[1743484093834,0.30137901,610.38,608.52,2.07666627]
[1743484096533,0.30137901,610.37,608.52,2.07666627]
[1743484096836,0.30137901,610.36,608.52,2.07666627]
[1743484099533,0.58684486,610.35,608.52,2.07666627]
[1743484099734,0.30137901,610.34,608.52,2.07666627]
[1743484102635,0.30137901,610.41,608.52,2.07666627]
[1743484102836,0.28546819,610.33,608.52,2.07666627]
[1743484103139,0.30137901,610.32,608.52,2.07666627]
[1743484103339,0.28546234,610.32,608.52,2.07666627]
[1743484103635,0.30137901,610.31,608.52,2.07666627]
[1743484105735,0.58686711,610.3,608.52,2.07666627]
[1743484105935,0.30137901,610.29,608.52,2.07666627]
[1743484108539,0.58686945,610.28,608.52,2.07666627]
[1743484108740,0.30137901,610.27,608.52,2.07666627]
[1743484111040,0.30137901,610.27,608.52,1.748]
[1743484111440,0.30137901,610.26,608.52,1.748]
[1743484111640,0.30137901,610.25,608.52,1.748]
[1743484114444,1.00937711,614.85,608.52,1.748]
[1743484114739,0.28552323,610.24,608.52,1.748]
[1743484114942,0.30137901,610.23,608.52,1.748]
[1743484115139,0.30137901,610.22,608.52,1.748]
[1743484115340,0.30137901,610.21,608.52,1.748]
[1743484115539,0.30137901,610.2,608.52,1.748]
[1743484115743,0.30137901,610.19,608.52,1.748]
[1743484115942,0.30137901,610.18,608.52,1.748]
[1743484116243,0.30137901,610.17,608.52,1.748]
[1743484116443,0.30137901,610.22,608.52,1.748]
[1743484116640,0.30137901,610.21,608.52,1.748]
[1743484117140,0.30137901,610.2,608.52,1.748]
[1743484117344,0.30137901,610.22,608.52,1.748]
[1743484117544,0.30137901,610.21,608.52,1.748]
[1743484117742,0.28552675,610.19,608.52,1.748]
[1743484118042,0.30137901,610.18,608.52,1.748]
[1743484118944,0.30145047,610.17,608.52,1.748]
[1743484119144,0.28552675,610.19,608.52,1.748]
[1743484120544,0.30143447,610.18,608.52,1.748]
[1743484120743,0.30143447,610.17,608.52,1.748]
[1743484123447,0.30143447,610.16,608.52,1.748]
[1743484123644,0.28551386,610.16,608.52,1.748]
[1743484123845,0.30143447,610.15,608.52,1.748]
[1743484126446,0.30143447,610.14,608.52,1.748]
[1743484126647,0.30143447,610.13,608.52,1.748]
[1743484126850,0.30143447,610.12,608.52,1.748]
[1743484127052,0.30143447,610.11,608.52,1.748]
[1743484127248,0.30143447,610.13,608.52,1.748]
[1743484127453,0.30143447,610.12,608.52,1.748]
[1743484127651,0.30143447,610.11,608.52,1.748]
[1743484127948,0.30143447,610.1,608.52,1.748]
[1743484128152,0.30143447,610.13,608.52,1.748]
[1743484128352,0.30143447,610.12,608.52,1.748]
[1743484128651,0.30143447,610.11,608.52,1.748]
[1743484128849,0.30143447,610.1,608.52,1.748]
[1743484129049,0.30143447,610.09,608.52,1.748]
[1743484129352,0.30143447,610.08,608.52,1.748]
[1743484129549,8.7182945,614.17,608.52,1.748]
[1743484129752,0.30143447,610.07,608.52,1.748]
[1743484130056,0.30143447,610.06,608.52,1.748]
[1743484130351,14.67502322,614.15,608.52,1.748]
[1743484130352,0.30143447,610.05,608.52,1.748]
[1743484130552,0.30143447,610.04,608.52,1.748]
[1743484130751,0.28505081,610.04,608.52,1.748]
[1743484130954,0.30143229,610.03,608.52,1.748]
[1743484132653,8.41682281,614.04,608.52,1.748]
[1743484132853,0.28553026,610.02,608.52,1.748]
[1743484133052,4.7312038,614.02,608.52,1.748]
[1743484133361,0.28506365,610.01,608.52,1.748]
[1743484133754,17.78086942,613.99,608.52,1.748]
[1743484133952,0.28506715,610.0,608.52,1.748]
[1743484134352,4.73120392,613.96,608.52,1.748]
[1743484134554,0.28507065,609.99,608.52,1.748]
[1743484134857,4.73120392,613.94,608.52,1.748]
[1743484135056,5.03262871,613.93,608.52,1.748]
[1743484135254,0.28507299,609.98,608.52,1.748]
[1743484135452,7.83708734,613.91,608.52,1.748]
[1743484135754,0.28507649,609.97,608.52,1.748]
[1743484136258,4.73120392,613.88,608.52,1.748]
[1743484136458,0.28507999,609.96,608.52,1.748]
[1743484136760,4.73120392,613.86,608.52,1.748]
[1743484137058,0.28507999,609.95,608.52,1.748]
[1743484137354,4.73120392,613.84,608.52,1.748]
[1743484137555,0.28508233,609.94,608.52,1.748]
[1743484138058,4.73120392,613.81,608.52,1.748]
[1743484138258,4.83137421,616.43,608.52,1.748]
[1743484138259,0.28508583,609.93,608.52,1.748]
[1743484138454,4.73120392,613.79,608.52,1.748]
[1743484138753,0.28508817,609.92,608.52,1.748]
[1743484139058,4.73120392,613.77,608.52,1.748]
[1743484139253,5.03262253,613.76,608.52,1.748]
[1743484139456,0.2850905,609.91,608.52,1.748]
[1743484139653,4.73120392,613.74,608.52,1.748]
[1743484139857,5.03262279,613.73,608.52,1.748]
[1743484140056,0.28509401,609.9,608.52,1.748]
[1743484140254,4.73120392,613.71,608.52,1.748]
[1743484140452,5.03262279,613.7,608.52,1.748]
[1743484140652,0.28509751,609.89,608.52,1.748]
[1743484140855,4.73120392,613.68,608.52,1.748]
[1743484141056,5.03262283,613.67,608.52,1.748]
[1743484141254,5.03262283,613.66,608.52,1.748]
[1743484141558,5.03259604,613.65,608.52,1.748]
[1743484141854,8.13847946,613.64,608.52,1.748]
[1743484142059,5.03259604,613.63,608.52,1.748]
[1743484142260,5.03259604,613.62,608.52,1.748]
[1743484142460,5.03259604,613.61,608.52,1.748]
[1743484142657,4.73117687,613.6,608.52,1.748]
[1743484142857,5.03259604,613.59,608.52,1.748]
[1743484143060,5.03259604,613.58,608.52,1.748]
[1743484143262,5.03259592,613.57,608.52,1.748]
[1743484143559,5.03259592,613.56,608.52,1.748]
[1743484143762,0.32609936,613.31,608.65,0.32859607]
[1743484144060,5.03259592,613.3,608.65,0.32859607]
[1743484144363,0.32622702,613.07,608.65,0.32859607]
[1743484144658,5.03259592,613.06,608.65,0.32859607]
[1743484144862,0.32634945,612.84,608.65,0.32859607]
[1743484145158,5.03259592,612.83,608.65,0.32859607]
[1743484145363,5.03259592,612.82,608.65,0.32859607]
[1743484145565,5.03259592,612.81,608.65,0.32859607]
[1743484145860,5.03259592,612.8,608.65,0.32859607]
[1743484146063,5.03259592,612.79,608.65,0.32859607]
[1743484146259,5.03259592,612.78,608.65,0.32859607]
[1743484146458,5.03259592,612.77,608.65,0.93059607]
[1743484146659,0.32649329,612.57,608.65,0.93059607]
[1743484146860,5.03259592,612.56,608.65,1.36159607]
[1743484147063,0.32659993,612.37,608.65,1.36159607]
[1743484147265,5.03259592,612.36,608.65,1.36159607]
[1743484147461,5.03259592,612.35,608.65,1.36159607]
[1743484147666,5.03259592,612.34,608.65,2.07659607]
[1743484147863,5.03259592,612.33,608.65,2.07659607]
[1743484148162,3.10588342,612.35,608.65,2.07659607]
[1743484148163,5.03259592,612.32,608.65,2.07659607]
[1743484148367,0.32672264,612.14,608.65,2.07659607]
[1743484148661,1.00949102,612.13,608.65,2.07659607]
[1743484148861,0.32681874,611.96,608.65,2.07659607]
[1743484149065,1.00949102,611.95,608.65,2.07659607]
[1743484149366,0.32690956,611.79,608.65,2.07659607]
[1743484149567,0.30141913,611.78,608.65,2.07659607]
[1743484149763,0.32699507,611.63,608.65,2.07659607]
[1743484150063,0.30141913,611.62,608.65,2.07659607]
[1743484150367,0.30141913,611.61,608.65,2.07659607]
[1743484150663,0.32708064,611.47,608.65,2.07659607]
[1743484150865,0.30141913,611.46,608.65,2.07659607]
[1743484151062,0.32716089,611.32,608.65,2.07659607]
[1743484151266,0.30141913,611.31,608.65,2.07659607]
[1743484151466,0.32723583,611.18,608.65,2.07659607]
[1743484151667,0.30141913,611.17,608.65,2.07659607]
[1743484151868,0.30141913,611.16,608.65,2.07659607]
[1743484152067,0.32731081,611.04,608.65,2.07659607]
[1743484152274,0.30141913,611.03,608.65,2.07659607]
[1743484152472,0.3273751,610.92,608.65,2.07659607]
[1743484152672,0.30141913,610.91,608.65,2.07659607]
[1743484152868,0.32743942,610.8,608.65,2.07659607]
[1743484153068,0.30141913,610.79,608.65,2.07659607]
[1743484153282,0.3274555,610.77,608.65,2.07659607]
[1743484153573,0.30141913,610.76,608.65,2.07659607]
[1743484153770,0.30141913,610.75,608.65,2.07659607]
[1743484153974,0.30141913,610.74,608.65,2.07659607]
[1743484154173,0.30141913,610.73,608.65,2.07659607]
[1743484154374,0.32748767,610.71,608.65,2.07659607]
[1743484154674,0.30141913,610.7,608.65,2.07659607]
[1743484154973,0.32750376,610.68,608.65,2.07659607]
[1743484155173,0.30141913,610.67,608.65,2.07659607]
[1743484155375,0.32751985,610.65,608.65,2.07659607]
[1743484155673,0.30141913,610.64,608.65,2.07659607]
[1743484155970,0.32753594,610.62,608.65,2.07659607]
[1743484156175,0.30141913,610.61,608.65,2.07659607]
[1743484156372,0.32755203,610.59,608.65,2.07659607]
[1743484156674,0.30141913,610.58,608.65,2.07659607]
[1743484156975,0.32756813,610.56,608.65,2.07659607]
[1743484157474,0.301473,610.55,608.65,2.07659607]
[1743484157770,0.32758423,610.53,608.65,2.07659607]
[1743484157971,0.301473,610.52,608.65,2.07659607]
[1743484158172,0.62906796,610.51,608.65,2.07659607]
[1743484158372,0.62907332,610.5,608.65,2.07659607]
[1743484158674,0.62907869,610.49,608.65,2.07659607]
[1743484158872,0.2854799,610.6,608.65,2.07659607]
[1743484158873,0.62908406,610.48,608.65,2.07659607]
[1743484159072,0.62908942,610.47,608.65,2.07659607]
[1743484159272,0.62909479,610.46,608.65,2.07659607]
[1743484159475,0.62910016,610.45,608.65,2.07659607]
[1743484159675,0.62910552,610.44,608.65,2.07659607]
[1743484159876,0.62911089,610.43,608.65,2.07659607]
[1743484160075,0.62911626,610.42,608.65,2.07659607]
[1743484160276,0.62912162,610.41,608.65,2.07659607]
[1743484160476,0.32765399,610.4,608.65,2.07659607]
[1743484160671,0.30147323,610.39,608.65,2.07659607]
[1743484160874,0.32766473,610.38,608.65,2.07659607]
[1743484161176,0.30147323,610.37,608.65,2.07659607]
[1743484161473,0.32767547,610.36,608.65,2.07659607]
[1743484161771,0.30147323,610.35,608.65,2.07659607]
[1743484161975,0.62915406,610.35,608.65,2.07659607]
[1743484162179,0.30147323,610.34,608.65,2.07659607]
[1743484162680,0.28551152,610.33,608.65,2.07659607]
[1743484162979,0.30147323,610.32,608.65,2.07659607]
[1743484163776,0.28551152,610.33,608.65,2.07659607]
[1743484163777,0.30147343,610.31,608.65,2.07659607]
[1743484163981,0.30147343,610.3,608.65,2.07659607]
[1743484164181,0.30147343,610.29,608.65,2.07659607]
[1743484164482,0.30147343,610.28,608.65,2.07659607]
[1743484164677,0.30147343,610.32,608.65,2.07659607]
[1743484164981,0.30147343,610.31,608.65,2.07659607]
[1743484165176,0.30147343,610.3,608.65,2.07659607]
[1743484165375,0.30147343,610.29,608.65,2.07659607]
[1743484165580,0.30147343,610.28,608.65,2.07659607]
[1743484165878,0.30147343,610.27,608.65,2.07659607]
[1743484166076,0.30147343,610.28,608.65,2.07659607]
[1743484166276,0.30147343,610.27,608.65,2.07659607]
[1743484166482,0.30147343,610.26,608.65,2.07659607]
[1743484166780,0.30147343,610.25,608.65,2.07659607]
[1743484166978,0.30147246,610.24,608.65,2.07659607]
[1743484167178,0.30147246,610.23,608.65,2.07659607]
[1743484167477,0.30147246,610.22,608.65,2.07659607]
[1743484167678,0.30147246,610.28,608.65,2.07659607]
[1743484167977,0.30147246,610.27,608.65,2.07659607]
[1743484168181,0.30147246,610.28,608.65,2.07659607]
[1743484168376,0.30147246,610.27,608.65,2.07659607]
[1743484168577,0.30147246,610.28,608.65,2.07659607]
[1743484170278,0.30147223,610.27,608.65,2.07659607]
[1743484170577,0.30147223,610.26,608.65,2.07659607]
[1743484170776,0.30147223,610.28,608.65,2.07659607]
[1743484171576,0.58699078,610.27,608.65,2.07659607]
[1743484171776,0.30147043,610.26,608.65,2.07659607]
[1743484173384,0.28551855,610.27,608.65,2.07659607]
[1743484173582,0.30147627,610.26,608.65,2.07659607]
[1743484174682,0.30147627,610.25,608.65,2.07659607]
[1743484174881,0.28552089,610.25,608.65,2.07659607]
[1743484175084,0.30147627,610.24,608.65,2.07659607]
[1743484177485,0.30147627,610.23,608.65,2.07659607]
[1743484177681,0.30147627,610.22,608.65,2.07659607]
[1743484177886,0.28551152,610.23,608.65,2.07659607]
[1743484178082,0.30147627,610.22,608.65,2.07659607]
[1743484178386,0.30147438,610.21,608.65,2.07659607]
[1743484178586,0.30147438,610.22,608.65,2.07659607]
[1743484178787,0.30147438,610.21,608.65,2.07659607]
[1743484178988,0.30147438,610.22,608.65,2.07659607]
[1743484179183,0.30147438,610.21,608.65,2.07659607]
[1743484179388,0.30147438,610.2,608.65,2.07659607]
[1743484179588,0.30147438,610.19,608.65,2.07659607]
[1743484179790,0.30147438,610.22,608.65,2.07659607]
[1743484179994,0.30147438,610.21,608.65,2.07659607]
[1743484180188,0.30147438,610.2,608.65,2.07659607]
[1743484180492,0.30147438,610.19,608.65,2.07659607]
[1743484180692,0.30147438,610.18,608.65,2.07659607]
[1743484183192,0.28552558,610.19,608.65,2.07659607]
[1743484183395,0.32768083,610.35,608.65,2.07659607]
[1743484183596,0.30147502,610.34,608.65,2.07659607]
[1743484183796,0.58651649,610.34,608.65,2.07659607]
[1743484184097,0.30147502,610.33,608.65,2.07659607]
[1743484184697,0.28504147,610.34,608.65,2.07659607]
[1743484184897,0.30146953,610.33,608.65,2.07659607]
[1743484186693,0.58698222,610.32,608.65,2.07659607]
[1743484186995,0.30146953,610.31,608.65,2.07659607]
[1743484189496,0.30146953,610.34,608.65,2.07659607]
[1743484189701,0.28551503,610.3,608.65,2.07659607]
[1743484189901,0.30146953,610.29,608.65,2.07659607]
[1743484192599,0.30146953,610.34,608.65,2.07659607]
[1743484192802,0.28551738,610.28,608.65,2.07659607]
[1743484193099,0.30146953,610.27,608.65,2.07659607]
[1743484194403,0.28551738,610.28,608.65,2.07659607]
[1743484194404,0.30147615,610.26,608.65,2.07659607]
[1743484194605,0.30147615,610.27,608.65,2.07659607]
[1743484194804,0.30147615,610.26,608.65,2.07659607]
[1743484195005,0.30147615,610.27,608.65,2.07659607]
[1743484195199,0.30147615,610.26,608.65,2.07659607]
[1743484195404,0.30147615,610.25,608.65,2.07659607]
[1743484195705,0.30147615,610.24,608.65,2.07659607]
[1743484198500,0.30147615,610.23,608.65,2.07659607]
[1743484198704,0.30147615,610.22,608.65,2.07659607]
[1743484198900,0.30147615,610.21,608.65,2.07659607]
[1743484199102,0.30147615,610.22,608.65,2.07659607]
[1743484199304,0.30147615,610.21,608.65,2.07659607]
[1743484199501,0.30147615,610.2,608.65,2.07659607]
[1743484199705,0.30147615,610.19,608.65,2.07659607]
[1743484200005,0.30147615,610.18,608.65,2.07659607]
[1743484200301,0.30147615,610.17,608.65,2.07659607]
[1743484200504,0.30147615,610.16,608.65,2.07659607]
[1743484200708,0.30147615,610.22,608.65,2.07659607]
[1743484201705,0.30147615,610.34,608.65,2.07659607]
[1743484201905,0.28555369,610.21,608.65,2.07659607]
[1743484202204,0.30153777,610.2,608.65,2.07659607]
[1743484202404,0.28554198,610.2,608.65,2.07659607]
[1743484202702,0.30153777,610.19,608.65,2.07659607]
[1743484204805,0.28555721,610.18,608.65,2.07659607]
[1743484205402,0.30153719,610.17,608.65,2.07659607]
[1743484207810,0.58709674,610.16,608.65,2.07659607]
[1743484208005,0.30153719,610.15,608.65,2.07659607]
[1743484210112,0.30152067,610.14,608.65,2.07659607]
[1743484210308,0.30152067,610.15,608.65,2.07659607]
[1743484210509,0.30152067,610.14,608.65,2.07659607]
[1743484210812,0.58708256,610.13,608.65,2.07659607]
[1743484211013,0.30152067,610.12,608.65,2.07659607]
[1743484211714,0.30152093,610.11,608.65,2.07659607]
[1743484211913,0.30152093,610.12,608.65,2.07659607]
[1743484212111,0.30152093,610.11,608.65,2.07659607]
[1743484212311,0.30152093,610.1,608.65,2.07659607]
[1743484212511,0.30152093,610.09,608.65,2.07659607]
[1743484212710,0.30152093,610.08,608.65,2.07659607]
[1743484212911,0.30152093,610.12,608.65,2.07659607]
[1743484213214,0.30152093,610.11,608.65,2.07659607]
[1743484213514,0.30152093,610.1,608.65,2.07659607]
[1743484213714,0.28556541,610.11,608.65,2.07659607]
[1743484213916,0.30152093,610.1,608.65,2.07659607]
[1743484214716,0.28556541,610.11,608.65,2.07659607]
[1743484214916,0.30152297,610.1,608.65,2.07659607]
[1743484216714,0.30152297,610.09,608.65,2.07659607]
[1743484216918,0.28556775,610.09,608.65,2.07659607]
[1743484217214,0.30152297,610.08,608.65,2.07659607]
[1743484219613,0.30152297,610.32,608.65,2.07659607]
[1743484219819,0.28557009,610.07,608.65,2.07659607]
[1743484220014,0.30152297,610.06,608.65,2.07659607]
[1743484220517,0.28557244,610.05,608.65,2.07659607]
[1743484220915,0.30152297,610.04,608.65,2.07659607]
[1743484225528,0.30152297,610.3,608.65,2.07659607]
[1743484225728,0.28557478,610.03,608.65,2.07659607]
[1743484225932,0.62923602,610.29,608.65,2.07659607]
[1743484226233,0.28554666,610.02,608.65,2.07659607]
[1743484226434,0.30152297,610.01,608.65,2.07659607]
[1743484226928,0.58710127,610.0,608.65,2.07659607]
[1743484227130,0.30152297,609.99,608.65,2.07659607]
[1743484228231,0.2855783,610.0,608.65,2.07659607]
[1743484228431,0.32771842,610.28,608.65,2.07659607]
[1743484228630,0.28558064,609.98,608.65,2.07659607]
[1743484229034,0.32771842,610.28,608.65,2.07659607]
[1743484229333,0.285549,609.97,608.65,2.07659607]
[1743484229532,0.32771842,610.28,608.65,2.07659607]
[1743484229731,0.30152382,610.27,608.65,2.07659607]
[1743484229933,0.285549,609.96,608.65,2.07659607]
[1743484230236,0.32772916,610.26,608.65,2.07659607]
[1743484230431,0.30152151,610.25,608.65,2.07659607]
[1743484230632,0.28555018,609.95,608.65,2.07659607]
[1743484230836,0.3277399,610.24,608.65,2.07659607]
[1743484231033,0.30152204,610.23,608.65,2.07659607]
[1743484231233,0.28555252,609.94,608.65,2.07659607]
[1743484231439,0.32774527,610.23,608.65,2.07659607]
[1743484231637,0.30152382,610.22,608.65,2.07659607]
[1743484231839,0.28555369,609.93,608.65,2.07659607]
[1743484232037,0.32774527,610.23,608.65,2.07659607]
[1743484232235,0.30152053,610.22,608.65,2.07659607]
[1743484232434,0.28555486,609.92,608.65,2.07659607]
[1743484232638,0.32774527,610.23,608.65,2.07659607]
[1743484232836,0.30152053,610.22,608.65,2.07659607]
[1743484233037,0.28555486,609.91,608.65,2.07659607]
[1743484233237,0.32774527,610.23,608.65,2.07659607]
[1743484233440,0.30152093,610.22,608.65,2.07659607]
[1743484233633,0.28555486,609.9,608.65,2.07659607]
[1743484233838,0.32774527,610.23,608.65,2.07659607]
[1743484234238,0.28555486,609.89,608.65,2.07659607]
[1743484234437,0.32774527,610.23,608.65,2.07659607]
[1743484234642,0.30152434,610.22,608.65,2.07659607]
[1743484234938,0.28555486,609.88,608.65,2.07659607]
[1743484235241,0.32774527,610.23,608.65,2.07659607]
[1743484235441,0.28555369,610.21,608.65,2.07659607]
[1743484235641,0.30152408,610.2,608.65,2.07659607]
[1743484239140,0.30152482,610.19,608.65,2.07659607]
[1743484239344,0.30152482,610.18,608.65,2.07659607]
[1743484239540,0.30152482,610.2,608.65,2.07659607]
[1743484240539,0.32774527,610.23,608.65,2.07659607]
[1743484240540,0.30152482,610.22,608.65,2.07659607]
[1743484240740,0.28555603,610.19,608.65,2.07659607]
[1743484240942,0.30152482,610.18,608.65,2.07659607]
[1743484243644,0.30152482,610.22,608.65,2.07659607]
[1743484243848,0.28555838,610.17,608.65,2.07659607]
[1743484244049,0.30152482,610.16,608.65,2.07659607]
[1743484246644,0.30152482,610.15,608.65,2.07659607]
[1743484246845,0.28555369,610.15,608.65,2.07659607]
[1743484247245,0.30152309,610.14,608.65,2.07659607]
[1743484248649,0.28555369,610.15,608.65,2.07659607]
[1743484248852,0.30152188,610.14,608.65,2.07659607]
[1743484249653,0.30152188,610.22,608.65,2.07659607]
[1743484249854,0.28556306,610.13,608.65,2.07659607]
[1743484250053,0.30152188,610.12,608.65,2.07659607]
[1743484250252,0.30152188,610.22,608.65,2.07659607]
[1743484250453,0.28555603,610.12,608.65,2.07659607]
[1743484250753,0.30152907,610.11,608.65,2.07659607]
[1743484250949,0.28555603,610.11,608.65,2.07659607]
[1743484251251,0.30152907,610.1,608.65,2.07659607]
[1743484252754,0.58709682,610.09,608.65,2.07659607]
[1743484252950,0.30152907,610.08,608.65,2.07659607]
[1743484255550,0.30152907,610.07,608.65,2.07659607]
[1743484255755,0.28557009,610.07,608.65,2.07659607]
[1743484256053,0.30152907,610.06,608.65,2.07659607]
[1743484258654,0.30152907,610.22,608.65,2.07659607]
[1743484258852,0.28557244,610.05,608.65,2.07659607]
[1743484259052,0.30152907,610.04,608.65,2.07659607]
[1743484259351,0.30152907,610.03,608.65,2.07659607]
[1743484261757,0.58710502,610.02,608.65,2.07659607]
[1743484262057,0.30152907,610.01,608.65,2.07659607]
[1743484263155,0.30152012,610.0,608.65,2.07659607]
[1743484263352,0.28557595,610.02,608.65,2.07659607]
[1743484263553,0.30152012,610.01,608.65,2.07659607]
[1743484264759,0.30152038,610.0,608.65,2.07659607]
[1743484264957,0.30152038,609.99,608.65,2.07659607]
[1743484265153,0.30152075,609.98,608.65,2.07659607]
[1743484265357,0.30152075,609.97,608.65,2.07659607]
[1743484265554,0.2855783,610.0,608.65,2.07659607]
[1743484265758,0.30152374,609.99,608.65,2.07659607]
[1743484266158,0.2855783,610.0,608.65,2.07659607]
[1743484266455,0.30152377,609.99,608.65,2.07659607]
[1743484267855,0.2855783,610.0,608.65,2.07659607]
[1743484268055,0.30152344,609.99,608.65,2.07659607]
[1743484270558,0.30152344,609.98,608.65,2.07659607]
[1743484270755,0.30152344,609.97,608.65,2.07659607]
[1743484273561,0.30152344,609.96,608.65,2.07659607]
[1743484273753,0.30152344,610.22,608.65,2.07659607]
[1743484273955,0.28555369,609.96,608.65,2.07659607]
[1743484274155,0.30152344,609.95,608.65,2.07659607]
[1743484274360,0.32774527,610.23,608.65,2.07659607]
[1743484274561,0.28555603,609.95,608.65,2.07659607]